bitfinex/quotes_BTCUSD_20250408
["timestamp","ask_amount","ask_price","bid_price","bid_amount"]
[1744131686673,1.56058651,77316.0,77315.0,1.8e-07]
[1744131686819,1.5360709,77316.0,77315.0,1.8e-07]
[1744131687020,1.377613,77316.0,77315.0,1.8e-07]
[1744131687185,1.386613,77316.0,77315.0,1.8e-07]
[1744131687592,1.245093,77316.0,77315.0,0.00100018]
[1744131687786,1.236093,77316.0,77315.0,1.8e-07]
[1744131688011,1.25146906,77316.0,77315.0,1.8e-07]
[1744131688215,1.25646906,77316.0,77315.0,1.8e-07]
[1744131688412,1.26465766,77316.0,77315.0,1.8e-07]
[1744131688821,1.26765766,77316.0,77315.0,1.8e-07]
[1744131689219,1.25472466,77316.0,77315.0,1.8e-07]
[1744131689418,1.26272466,77316.0,77315.0,1.8e-07]
[1744131689835,1.26272466,77316.0,77315.0,0.01293418]
[1744131690082,1.23116,77316.0,77315.0,0.01293418]
[1744131690317,1.23616,77316.0,77315.0,0.12625882]
[1744131690511,0.013,77316.0,77315.0,0.15373367]
[1744131690899,0.03155422,77316.0,77315.0,0.15373367]
[1744131691080,0.02355422,77316.0,77315.0,0.15632018]
[1744131691239,0.02355422,77316.0,77315.0,0.15373367]
[1744131691439,0.01293,77338.0,77329.0,0.012931]
[1744131691647,0.19848,77338.0,77335.0,0.258613]
[1744131691843,0.34,77337.0,77335.0,0.258613]
[1744131692098,0.19848,77338.0,77335.0,0.271543]
[1744131692331,0.19848,77338.0,77336.0,0.271538]
[1744131692514,0.19848,77338.0,77334.0,0.258616]
[1744131692656,0.19848,77338.0,77330.0,0.13918964]
[1744131692657,0.258613,77336.0,77330.0,0.13918964]
[1744131692861,0.012932,77326.0,77319.0,0.01454085]
[1744131693060,0.258659,77323.0,77320.0,0.12625864]
[1744131693345,0.012933,77321.0,77316.0,0.258678]
[1744131693494,0.271577,77326.0,77321.0,0.258661]
[1744131693677,0.343,77337.0,77334.0,0.258615]
[1744131693877,0.02356317,77325.0,77324.0,0.28612385]
[1744131694080,0.2,77350.0,77325.0,0.40354085]
[1744131694283,0.0003352,77355.0,77354.0,0.271478]
[1744131694480,0.0003352,77355.0,77354.0,0.41227749]
[1744131695692,0.0003352,77355.0,77354.0,0.00045655]
[1744131695898,0.49876272,77355.0,77354.0,0.00045655]
[1744131696068,0.83876272,77355.0,77354.0,0.00045655]
[1744131696625,0.5388152,77355.0,77354.0,0.00045655]
[1744131696836,0.34,77363.0,77362.0,0.258524]
[1744131697125,0.012924,77372.0,77362.0,0.258524]
[1744131697126,0.19848,77377.0,77371.0,0.012924]
[1744131697380,0.258497,77371.0,77363.0,0.12625864]
[1744131697658,0.012925,77369.0,77364.0,0.12625864]
[1744131697818,0.012925,77366.0,77364.0,0.12625864]
[1744131698017,0.012924,77375.0,77365.0,0.12625864]
[1744131698219,0.258517,77365.0,77355.0,0.271475]
[1744131698451,0.012926,77363.0,77356.0,0.12625864]
[1744131698657,0.258541,77357.0,77339.0,0.01454085]
[1744131698826,0.258544,77356.0,77346.0,0.012928]
[1744131699019,0.007,77355.0,77348.0,0.25857]
[1744131699361,0.007,77355.0,77346.0,0.012928]
[1744131699660,0.352927,77355.0,77335.0,0.01293]
[1744131699891,0.47918245,77355.0,77329.0,0.012931]
[1744131700021,0.47918245,77355.0,77325.0,0.258646]
[1744131700207,0.60544109,77355.0,77327.0,0.012932]
[1744131700409,0.60544109,77355.0,77333.0,0.258621]
[1744131700650,0.60744109,77355.0,77333.0,0.258621]
[1744131700851,0.35377753,77355.0,77343.0,0.012929]
[1744131701027,0.28525253,77355.0,77339.0,0.2586]
[1744131701224,0.28925253,77355.0,77338.0,0.01293]
[1744131701430,0.28925253,77355.0,77341.0,0.258593]
[1744131701829,0.28925253,77355.0,77339.0,0.01293]
[1744131701830,0.002,77355.0,77352.0,0.258557]
[1744131702031,0.34,77358.0,77348.0,0.012928]
[1744131702238,0.19844,77359.0,77353.0,0.012927]
[1744131702442,0.006,77355.0,77350.0,0.012928]
[1744131702644,0.006,77355.0,77348.0,0.01551343]
[1744131702866,0.358927,77355.0,77332.0,0.01454085]
[1744131703043,0.358927,77355.0,77338.0,0.01293]
[1744131703245,0.46929182,77355.0,77338.0,0.258604]
[1744131703448,0.360927,77355.0,77337.0,0.01293]
[1744131703756,0.354927,77355.0,77338.0,0.01293]
[1744131703959,0.014927,77355.0,77338.0,0.01293]
[1744131704156,0.002,77355.0,77345.0,0.012929]
[1744131704340,0.002,77355.0,77354.0,0.01338355]
[1744131704536,0.002,77355.0,77354.0,0.00045655]
[1744131704738,0.260548,77355.0,77354.0,0.00045655]
[1744131704939,0.273475,77355.0,77354.0,0.00045655]
[1744131705342,0.273475,77355.0,77354.0,5.5e-07]
[1744131705541,0.93933364,77355.0,77354.0,5.5e-07]
[1744131705977,0.613475,77355.0,77354.0,5.5e-07]
[1744131706131,0.348,77355.0,77354.0,5.5e-07]
[1744131706736,0.360927,77355.0,77354.0,5.5e-07]
[1744131706943,0.348,77355.0,77354.0,5.5e-07]
[1744131707180,0.364927,77355.0,77354.0,5.5e-07]
[1744131707406,0.49518245,77355.0,77354.0,5.5e-07]
[1744131707582,0.27159,77322.0,77321.0,0.0004]
[1744131707761,0.258638,77328.0,77322.0,0.258658]
[1744131707966,0.34,77330.0,77323.0,0.12625864]
[1744131708296,0.1996,77334.0,77333.0,0.012931]
[1744131708521,0.34,77343.0,77339.0,0.01293]
[1744131708705,0.258584,77345.0,77340.0,0.12625864]
[1744131708885,0.258595,77341.0,77340.0,0.12625864]
[1744131709062,0.258595,77341.0,77332.0,0.01454085]
[1744131709063,0.258604,77339.0,77332.0,0.258623]
[1744131709263,0.258604,77339.0,77333.0,0.12625864]
[1744131709502,0.352929,77344.0,77334.0,0.258617]
[1744131709716,0.012929,77343.0,77335.0,0.12625864]
[1744131709955,0.25861,77337.0,77335.0,0.12625864]
[1744131710110,0.012931,77330.0,77323.0,0.01454085]
[1744131710314,0.34,77340.0,77333.0,0.012931]
[1744131710497,0.271536,77338.0,77333.0,0.12625864]
[1744131710897,0.258606,77338.0,77333.0,0.38487964]
[1744131711200,0.01316769,77339.0,77338.0,0.258604]
[1744131711424,0.598579,77346.0,77340.0,0.258597]
[1744131711620,0.34,77346.0,77340.0,0.12625864]
[1744131711824,0.01293,77339.0,77326.0,0.012932]
[1744131711988,0.271535,77338.0,77332.0,0.01454085]
[1744131712190,0.01293,77339.0,77334.0,0.01454085]
[1744131712394,0.01293,77336.0,77335.0,0.12625864]
[1744131712600,0.01293,77339.0,77335.0,0.12625864]
[1744131712819,0.258611,77336.0,77335.0,0.12625864]
[1744131713060,0.258587,77344.0,77339.0,0.2586]
[1744131713212,0.258591,77342.0,77340.0,0.12625864]
[1744131713604,0.34,77346.0,77343.0,0.012929]
[1744131713754,0.000335,77386.0,77371.0,0.258494]
[1744131713755,0.11352245,77386.0,77371.0,0.258494]
[1744131713955,0.11352245,77386.0,77371.0,0.39767664]
[1744131714278,0.12644445,77386.0,77371.0,0.41221749]
[1744131714477,0.01288099,77379.0,77371.0,0.41221749]
[1744131715152,0.11352245,77386.0,77371.0,0.41265052]
[1744131715378,0.01314444,77383.0,77371.0,0.41265052]
[1744131715618,0.11352245,77386.0,77371.0,0.41265052]
[1744131715808,1e-06,77372.0,77371.0,0.41265052]
[1744131716218,1e-06,77372.0,77371.0,0.41365052]
[1744131716375,0.002001,77372.0,77371.0,0.41365052]
[1744131716573,0.002001,77372.0,77371.0,0.40865052]
[1744131716756,1e-06,77372.0,77371.0,0.40765052]
[1744131716963,1e-06,77372.0,77371.0,0.41165052]
[1744131717157,0.001001,77372.0,77371.0,0.41865052]
[1744131717567,0.001001,77372.0,77371.0,0.13269167]
[1744131717795,0.001001,77372.0,77371.0,0.14561567]
[1744131717974,0.001001,77372.0,77371.0,0.14820023]
[1744131718167,0.001001,77372.0,77371.0,0.16274108]
[1744131718822,0.001001,77372.0,77371.0,0.16015652]
[1744131719029,0.001001,77372.0,77371.0,0.1841964]
[1744131719858,0.259492,77372.0,77371.0,0.15673155]
[1744131720094,0.001001,77372.0,77371.0,0.16965555]
[1744131720331,0.001001,77372.0,77371.0,0.01143303]
[1744131720472,0.272416,77372.0,77371.0,0.01143303]
[1744131721070,0.693939,77372.0,77371.0,0.01143303]
[1744131721487,0.693939,77372.0,77371.0,3e-08]
[1744131721683,0.341001,77372.0,77371.0,3e-08]
[1744131721886,0.34,77371.0,77370.0,0.012924]
[1744131722085,1e-06,77372.0,77371.0,0.28595885]
[1744131722305,1e-06,77372.0,77371.0,0.41621749]
[1744131722578,0.0004,77399.0,77385.0,0.27137]
[1744131722736,0.0004,77399.0,77398.0,0.28586485]
[1744131722943,0.0004,77399.0,77398.0,0.41212349]
[1744131723679,0.271721,77399.0,77398.0,0.12625864]
[1744131723884,0.0004,77399.0,77398.0,0.12625864]
[1744131724038,0.0004,77399.0,77398.0,0.15415341]
[1744131724261,0.0004,77399.0,77398.0,0.15673709]
[1744131725239,6e-07,77402.0,77401.0,0.012919]
[1744131725456,6e-07,77402.0,77401.0,0.41211249]
[1744131725660,0.000335,77403.0,77401.0,0.41211249]
[1744131725661,6e-07,77403.0,77402.0,0.02745985]
[1744131725810,2e-07,77416.0,77415.0,0.012917]
[1744131726010,8e-07,77419.0,77418.0,0.271253]
[1744131726215,6e-07,77429.0,77428.0,0.167915]
[1744131726415,6e-07,77429.0,77428.0,0.92601858]
[1744131726593,8e-07,77436.0,77432.0,0.271205]
[1744131726809,6.5e-07,77448.0,77447.0,0.271153]
[1744131727040,6.5e-07,77448.0,77447.0,0.41195249]
[1744131727436,0.01291165,77448.0,77447.0,0.15025873]
[1744131727640,0.61114865,77448.0,77447.0,0.02443401]
[1744131727812,0.90014236,77448.0,77447.0,0.00043392]
[1744131728016,1.026401,77448.0,77447.0,9.2e-07]
[1744131728478,0.93684729,77448.0,77447.0,9.2e-07]
[1744131728689,0.27125,77419.0,77418.0,0.003]
[1744131728909,0.81069,77419.0,77418.0,0.003]
[1744131729082,0.81069,77419.0,77397.0,0.01292]
[1744131729083,0.012921,77390.0,77381.0,0.02389068]
[1744131729250,0.012922,77383.0,77382.0,0.12625864]
[1744131729433,0.271373,77385.0,77382.0,0.12625864]
[1744131729434,0.01292,77394.0,77382.0,0.12625864]
[1744131729759,0.34,77393.0,77384.0,0.012922]
[1744131729960,0.470757,77400.0,77392.0,0.012921]
[1744131730173,0.01687963,77419.0,77413.0,0.258354]
[1744131730501,0.004,77419.0,77417.0,0.25834]
[1744131730796,0.004,77419.0,77401.0,0.01454085]
[1744131730797,0.262334,77419.0,77418.0,0.12625864]
[1744131731009,0.258423,77393.0,77386.0,0.012922]
[1744131731210,0.271376,77383.0,77349.0,0.20008]
[1744131731402,0.271359,77389.0,77381.0,0.12665864]
[1744131731580,0.012922,77384.0,77381.0,0.12665864]
[1744131731790,0.352922,77382.0,77381.0,0.0004]
[1744131732160,0.34,77382.0,77381.0,0.00083537]
[1744131732399,0.258432,77390.0,77383.0,0.271374]
[1744131732595,0.01292,77395.0,77381.0,0.12709401]
[1744131732596,0.012919,77401.0,77390.0,0.012921]
[1744131732812,0.2,77428.0,77381.0,0.00083537]
[1744131732813,0.258329,77421.0,77406.0,0.012918]
[1744131732979,0.2,77428.0,77421.0,0.012916]
[1744131733321,0.258406,77398.0,77390.0,0.012921]
[1744131733526,0.271324,77398.0,77391.0,0.38468464]
[1744131733657,0.01292,77399.0,77391.0,0.12625864]
[1744131733856,0.34,77407.0,77401.0,0.012919]
[1744131734098,0.012919,77401.0,77393.0,0.27134]
[1744131734309,0.01292,77395.0,77394.0,0.12625864]
[1744131734502,0.271345,77392.0,77391.0,0.00043537]
[1744131735320,0.271336,77395.0,77391.0,0.00043537]
[1744131735693,0.258419,77394.0,77391.0,0.00043537]
[1744131735918,0.258423,77393.0,77391.0,0.00043537]
[1744131736151,0.352921,77392.0,77391.0,3.7e-07]
[1744131736345,0.47917964,77392.0,77391.0,3.7e-07]
[1744131736527,0.48117964,77392.0,77391.0,3.7e-07]
[1744131736681,0.360921,77392.0,77391.0,3.7e-07]
[1744131736883,0.348,77392.0,77391.0,3.7e-07]
[1744131737084,0.348,77392.0,77391.0,0.13918001]
[1744131737085,0.008,77392.0,77391.0,0.13918001]
[1744131737472,0.006,77392.0,77391.0,0.13918001]
[1744131737685,0.006,77392.0,77391.0,0.12625901]
[1744131737892,0.012921,77392.0,77391.0,0.12625901]
[1744131738142,0.012921,77392.0,77391.0,3.7e-07]
[1744131738314,0.1386146,77392.0,77391.0,3.7e-07]
[1744131738517,0.021921,77392.0,77391.0,3.7e-07]
[1744131738718,0.012921,77392.0,77391.0,3.7e-07]
[1744131739160,0.018921,77392.0,77391.0,3.7e-07]
[1744131739565,0.014921,77392.0,77391.0,3.7e-07]
[1744131739923,0.009,77392.0,77391.0,0.00100037]
[1744131740133,0.015,77392.0,77391.0,0.14118001]
[1744131740552,0.015,77392.0,77391.0,0.15830491]
[1744131740765,0.0001674,77432.0,77423.0,0.258321]
[1744131740766,0.271217,77429.0,77423.0,0.258321]
[1744131740929,0.0001674,77432.0,77427.0,0.012915]
[1744131741137,0.0001674,77432.0,77429.0,0.2583]
[1744131741359,0.0001674,77432.0,77428.0,0.12625864]
[1744131741560,0.258379,77406.0,77401.0,0.258392]
[1744131741875,0.41700207,77432.0,77402.0,0.12625864]
[1744131741876,0.012917,77412.0,77402.0,0.12625864]
[1744131742078,0.258381,77405.0,77402.0,0.12625864]
[1744131742376,0.258381,77405.0,77401.0,0.00042878]
[1744131742377,0.271312,77402.0,77401.0,0.00042878]
[1744131742580,0.611312,77402.0,77401.0,0.00042878]
[1744131742817,0.34,77402.0,77401.0,0.00042878]
[1744131742943,0.6737321,77402.0,77401.0,0.00042878]
[1744131743157,0.352919,77402.0,77401.0,0.00042878]
[1744131743350,0.352919,77402.0,77401.0,0.00542878]
[1744131743669,0.34,77402.0,77401.0,0.00042878]
[1744131744095,1.02392,77409.0,77401.0,0.12668742]
[1744131744316,1.02392,77409.0,77403.0,0.012919]
[1744131744317,0.598372,77408.0,77403.0,0.012919]
[1744131744461,0.258384,77405.0,77403.0,0.12625864]
[1744131744895,0.34,77408.0,77404.0,0.012919]
[1744131745090,0.598373,77408.0,77403.0,0.12625864]
[1744131745297,0.012919,77402.0,77401.0,0.00042878]
[1744131745503,0.258381,77406.0,77401.0,0.13068742]
[1744131745657,0.34,77406.0,77401.0,0.38907842]
[1744131745862,0.012919,77402.0,77401.0,0.00442878]
[1744131746069,0.61131,77402.0,77401.0,0.00042878]
[1744131746268,0.34,77402.0,77401.0,0.00042878]
[1744131747054,0.213037,77413.0,77408.0,0.258371]
[1744131747202,0.0001674,77423.0,77416.0,0.012917]
[1744131747409,0.0001674,77423.0,77418.0,0.258337]
[1744131747410,0.27124,77422.0,77418.0,0.258337]
[1744131747782,0.0001674,77423.0,77403.0,0.258386]
[1744131747783,0.012918,77409.0,77403.0,0.258386]
[1744131747977,0.012917,77412.0,77404.0,0.12625864]
[1744131748284,0.34,77419.0,77408.0,0.271285]
[1744131748484,0.258359,77412.0,77409.0,0.12625864]
[1744131748655,0.34,77419.0,77412.0,0.258357]
[1744131748868,0.2,77447.0,77422.0,0.27124]
[1744131749197,0.258275,77437.0,77422.0,0.4360683]
[1744131749331,0.258316,77425.0,77422.0,0.15028745]
[1744131749533,0.258308,77427.0,77422.0,0.12625864]
[1744131749849,0.271234,77424.0,77422.0,0.12625864]
[1744131750078,0.012916,77420.0,77415.0,0.012917]
[1744131750280,0.0041674,77423.0,77422.0,0.258324]
[1744131750483,0.0121674,77423.0,77422.0,0.39849864]
[1744131750687,0.2834044,77423.0,77422.0,0.001]
[1744131750995,0.6234044,77423.0,77422.0,0.001]
[1744131751820,0.34,77422.0,77417.0,0.012917]
[1744131752029,0.0001674,77423.0,77422.0,0.258324]
[1744131752226,0.0001674,77423.0,77422.0,0.39749864]
[1744131752429,0.0001674,77423.0,77422.0,0.41203949]
[1744131752630,0.0041674,77423.0,77422.0,0.41203949]
[1744131752855,0.0121674,77423.0,77422.0,0.43707934]
[1744131753042,0.0081674,77423.0,77422.0,0.43707934]
[1744131753245,0.0001674,77423.0,77422.0,0.43607934]
[1744131753826,0.0001674,77423.0,77422.0,0.15029849]
[1744131754057,0.2714044,77423.0,77422.0,0.02403985]
[1744131754283,0.2724044,77423.0,77422.0,0.15629849]
[1744131754530,0.2724044,77423.0,77422.0,0.13225864]
[1744131754759,0.69389054,77423.0,77422.0,0.006]
[1744131754977,0.69389054,77423.0,77401.0,0.00042878]
[1744131754978,0.27131,77402.0,77401.0,0.00042878]
[1744131755160,0.61131,77402.0,77401.0,0.00042878]
[1744131755627,0.34,77416.0,77407.0,0.012918]
[1744131755865,0.012917,77415.0,77409.0,0.012918]
[1744131756083,0.258357,77413.0,77410.0,0.38462164]
[1744131756297,0.012917,77415.0,77410.0,0.39753864]
[1744131756298,0.25835,77415.0,77410.0,0.39753864]
[1744131756523,0.352917,77417.0,77410.0,0.12625864]
[1744131756768,0.012918,77411.0,77410.0,0.12625864]
[1744131756983,0.34,77411.0,77410.0,0.12625864]
[1744131757195,0.352918,77411.0,77410.0,0.12625864]
[1744131757411,0.352918,77411.0,77401.0,0.00642878]
[1744131757635,0.258384,77404.0,77402.0,0.12625864]
[1744131757852,0.012918,77409.0,77402.0,0.12625864]
[1744131758082,0.012917,77414.0,77409.0,0.258367]
[1744131758265,0.012917,77412.0,77410.0,0.12625864]
[1744131758407,0.012918,77411.0,77410.0,0.12825864]
[1744131758614,0.012918,77411.0,77410.0,0.12625864]
[1744131758830,0.012918,77411.0,77401.0,0.00042878]
[1744131758831,0.012919,77402.0,77401.0,0.00042878]
[1744131759086,0.5887535,77402.0,77401.0,7.8e-07]
[1744131759289,0.61138,77382.0,77374.0,0.11518637]
[1744131759590,0.61138,77382.0,77360.0,0.0003348]
[1744131759591,0.611439,77365.0,77364.0,0.11478637]
[1744131760972,0.352926,77361.0,77360.0,2.1e-07]
[1744131761169,0.352926,77361.0,77323.0,0.0451675]
[1744131761170,0.598558,77352.0,77351.0,1e-08]
[1744131761507,0.012925,77365.0,77358.0,0.012926]
[1744131761644,0.2,77383.0,77362.0,0.012926]
[1744131761645,0.34,77366.0,77362.0,0.012926]
[1744131761846,0.258477,77377.0,77369.0,0.271423]
[1744131762069,0.012923,77378.0,77364.0,0.012925]
[1744131762070,0.001,77365.0,77364.0,0.012925]
[1744131762283,1.02372,77382.0,77373.0,0.012924]
[1744131762485,1.02372,77382.0,77351.0,0.00042538]
[1744131762486,0.012924,77371.0,77362.0,0.012926]
[1744131762716,0.258499,77370.0,77366.0,0.258509]
[1744131762969,0.258494,77372.0,77367.0,0.38476464]
[1744131763180,0.258494,77372.0,77368.0,0.258503]
[1744131763385,0.258501,77369.0,77365.0,0.258514]
[1744131763590,0.271433,77367.0,77366.0,0.12625864]
[1744131763764,0.271422,77370.0,77366.0,0.12625864]
[1744131763765,0.012924,77370.0,77366.0,0.12625864]
[1744131763964,0.258508,77367.0,77366.0,0.12625864]
[1744131764127,0.271433,77367.0,77366.0,0.12625864]
[1744131764337,0.271439,77365.0,77364.0,0.004]
[1744131764549,0.271422,77370.0,77364.0,0.004]
[1744131764550,0.34,77373.0,77364.0,0.12625864]
[1744131764753,0.34,77371.0,77368.0,0.258503]
[1744131764950,0.34,77371.0,77369.0,0.12625864]
[1744131765185,0.598496,77371.0,77369.0,0.12625864]
[1744131765654,0.598498,77370.0,77369.0,0.12625864]
[1744131765892,0.34,77370.0,77369.0,0.12625864]
[1744131766119,0.34,77381.0,77376.0,0.012923]
[1744131766344,0.219122,77384.0,77377.0,0.12625864]
[1744131766570,0.012923,77378.0,77377.0,0.12625864]
[1744131766978,0.012923,77378.0,77351.0,0.41590001]
[1744131766979,0.12625545,77378.0,77365.0,0.012925]
[1744131767138,0.34,77380.0,77377.0,0.12625864]
[1744131767471,0.34,77380.0,77365.0,0.00042537]
[1744131767472,0.598511,77366.0,77365.0,0.00042537]
[1744131767605,0.611436,77366.0,77365.0,3.7e-07]
[1744131767799,0.73769145,77366.0,77365.0,3.7e-07]
[1744131768260,0.611436,77366.0,77365.0,3.7e-07]
[1744131768808,0.611436,77366.0,77365.0,0.00300037]
[1744131769007,0.611436,77366.0,77365.0,3.7e-07]
[1744131769245,0.620436,77366.0,77365.0,0.00100037]
[1744131769456,0.628436,77366.0,77365.0,0.00200037]
[1744131769674,0.628436,77366.0,77351.0,1e-08]
[1744131769675,0.611485,77352.0,77351.0,1e-08]
[1744131769859,0.817725,77352.0,77351.0,0.00042218]
[1744131770380,0.34,77352.0,77351.0,0.12668082]
[1744131771037,0.20624,77360.0,77354.0,0.012927]
[1744131771241,0.20624,77360.0,77355.0,0.12625864]
[1744131771459,0.271461,77359.0,77355.0,0.12625864]
[1744131771689,0.464772,77360.0,77355.0,0.38480464]
[1744131771822,0.20624,77360.0,77355.0,0.12625864]
[1744131772025,0.20624,77360.0,77359.0,0.012926]
[1744131772231,0.221166,77360.0,77359.0,0.12625864]
[1744131772431,0.226166,77360.0,77359.0,0.12625864]
[1744131772673,0.271485,77352.0,77339.0,0.02747085]
[1744131772878,0.271485,77352.0,77341.0,0.01454085]
[1744131773319,0.271485,77352.0,77337.0,0.258606]
[1744131773320,0.611485,77352.0,77337.0,0.258606]
[1744131773476,0.611485,77352.0,77341.0,0.01454085]
[1744131773684,0.34,77352.0,77351.0,0.12668082]
[1744131773885,0.352927,77352.0,77351.0,0.12668082]
[1744131774293,0.352927,77352.0,77351.0,0.00042218]
[1744131774642,0.352927,77352.0,77351.0,1.8e-07]
[1744131774643,0.4683708,77352.0,77351.0,1.8e-07]
[1744131774963,0.4683708,77352.0,77351.0,0.00300018]
[1744131775221,0.4683708,77352.0,77351.0,1.8e-07]
[1744131775399,0.4733708,77352.0,77351.0,1.8e-07]
[1744131775599,0.4753708,77352.0,77351.0,1.8e-07]
[1744131775804,0.4703708,77352.0,77351.0,1.8e-07]
[1744131775985,0.4683708,77352.0,77351.0,1.8e-07]
[1744131776183,0.364927,77352.0,77351.0,1.8e-07]
[1744131776408,0.571207,77352.0,77351.0,1.8e-07]
[1744131776722,0.563207,77352.0,77351.0,1.8e-07]
[1744131777140,0.572207,77352.0,77351.0,1.8e-07]
[1744131777582,0.361927,77352.0,77351.0,1.8e-07]
[1744131777923,0.49618245,77352.0,77351.0,0.00100018]
[1744131778064,0.349,77352.0,77351.0,1.8e-07]
[1744131778270,0.271482,77353.0,77351.0,0.12625882]
[1744131778481,0.20628,77354.0,77353.0,0.258554]
[1744131778688,0.219207,77354.0,77353.0,0.12625864]
[1744131778896,0.817758,77354.0,77353.0,0.12625864]
[1744131779313,0.464831,77354.0,77353.0,0.14079949]
[1744131779533,0.477758,77354.0,77353.0,0.14079949]
[1744131779741,0.20628,77354.0,77353.0,0.12625864]
[1744131779920,0.477758,77354.0,77353.0,0.12625864]
[1744131780121,0.271485,77352.0,77351.0,1.8e-07]
[1744131780327,0.012926,77359.0,77351.0,1.8e-07]
[1744131780328,0.2462,77390.0,77363.0,0.012926]
[1744131780577,0.2462,77390.0,77370.0,0.012924]
[1744131780578,0.258475,77377.0,77370.0,0.012924]
[1744131780777,0.258475,77377.0,77351.0,1.8e-07]
[1744131780778,0.258491,77372.0,77371.0,0.12625864]
[1744131781108,0.271415,77372.0,77371.0,0.12625864]
[1744131781326,0.271415,77372.0,77358.0,0.012926]
[1744131781327,0.012927,77356.0,77348.0,0.258569]
[1744131781501,0.258554,77353.0,77352.0,0.12625864]
[1744131781654,0.012926,77359.0,77352.0,0.13918564]
[1744131782022,0.34,77364.0,77353.0,0.01712608]
[1744131782157,0.258542,77357.0,77354.0,0.12625864]
[1744131782360,0.34,77364.0,77361.0,0.258528]
[1744131782562,0.34,77364.0,77354.0,0.12625864]
[1744131782563,0.611447,77363.0,77362.0,0.12625864]
[1744131782771,0.258558,77352.0,77329.0,0.4159]
[1744131782969,0.271485,77352.0,77351.0,0.12625882]
[1744131783510,0.34,77370.0,77357.0,0.012927]
[1744131783664,0.258558,77352.0,77351.0,1.8e-07]
[1744131784012,0.26891569,77352.0,77351.0,1.8e-07]
[1744131784365,0.258531,77360.0,77355.0,0.258545]
[1744131784642,0.258521,77363.0,77358.0,0.012926]
[1744131784855,0.012926,77361.0,77359.0,0.12625864]
[1744131785054,0.34,77360.0,77359.0,0.12625864]
[1744131785337,0.598531,77360.0,77359.0,0.12625864]
[1744131785542,0.611457,77360.0,77359.0,0.12625864]
[1744131785958,0.25853,77361.0,77359.0,0.12625864]
[1744131786119,0.271457,77360.0,77359.0,0.12625864]
[1744131786458,0.271457,77360.0,77351.0,1.8e-07]
[1744131786459,0.611485,77352.0,77351.0,1.8e-07]
[1744131786613,0.816405,77352.0,77351.0,1.8e-07]
[1744131787632,0.54492,77352.0,77351.0,0.12625882]
[1744131787833,0.54492,77352.0,77351.0,0.13918682]
[1744131788034,0.20492,77352.0,77351.0,0.39774782]
[1744131788241,0.20492,77352.0,77351.0,0.14079967]
[1744131788449,0.003,77352.0,77351.0,0.12625882]
[1744131788760,0.022927,77352.0,77351.0,0.12625882]
[1744131788962,0.359927,77352.0,77351.0,0.12625882]
[1744131789169,0.48018245,77352.0,77351.0,1.8e-07]
[1744131789547,0.358927,77352.0,77351.0,1.8e-07]
[1744131789755,0.358927,77352.0,77333.0,0.0001674]
[1744131789756,0.611548,77334.0,77333.0,0.0001674]
[1744131789919,0.34,77321.0,77320.0,2e-07]
[1744131790117,0.352933,77321.0,77320.0,2e-07]
[1744131790323,0.352933,77321.0,77320.0,0.00042376]
[1744131790868,0.36603708,77321.0,77320.0,0.00042376]
[1744131791073,0.012932,77325.0,77320.0,0.00042376]
[1744131791244,0.34,77337.0,77330.0,0.012931]
[1744131791443,0.20496,77339.0,77333.0,0.012931]
[1744131791654,0.34,77338.0,77334.0,0.12625864]
[1744131791849,0.463562,77339.0,77334.0,0.12625864]
[1744131792262,0.012929,77343.0,77335.0,0.01293]
[1744131792466,0.271507,77346.0,77338.0,0.01293]
[1744131792674,1.30132006,77380.0,77354.0,0.258549]
[1744131792864,0.012923,77377.0,77368.0,0.271429]
[1744131793089,0.258498,77371.0,77368.0,0.14079949]
[1744131793291,0.012921,77390.0,77368.0,0.15372449]
[1744131793495,0.01292,77394.0,77368.0,0.16600116]
[1744131793667,1e-06,77369.0,77368.0,0.16600116]
[1744131793869,0.205295,77396.0,77395.0,0.01292]
[1744131794127,0.000335,77396.0,77395.0,0.39921349]
[1744131794257,0.000335,77396.0,77395.0,0.41213349]
[1744131794657,0.000335,77396.0,77395.0,0.42192886]
[1744131794885,0.000335,77396.0,77395.0,0.76192886]
[1744131795119,0.01280822,77426.0,77395.0,0.76192886]
[1744131795120,0.27111922,77426.0,77398.0,0.28586485]
[1744131795324,0.013315,77429.0,77398.0,0.41212349]
[1744131795325,0.0004,77429.0,77398.0,0.41212349]
[1744131795523,0.271232,77425.0,77398.0,0.41212349]
[1744131795679,0.271235,77424.0,77398.0,0.41212349]
[1744131795883,0.258347,77416.0,77398.0,0.41212349]
[1744131796068,0.01332,77399.0,77398.0,0.14079949]
[1744131796268,0.01292,77396.0,77395.0,0.00242356]
[1744131796472,0.271331,77396.0,77395.0,0.00242356]
[1744131796893,0.271331,77396.0,77395.0,0.00042356]
[1744131797626,0.0004,77399.0,77395.0,0.00042356]
[1744131797783,0.271327,77398.0,77396.0,0.12625864]
[1744131797984,0.01292,77398.0,77396.0,0.12625864]
[1744131798185,0.271316,77401.0,77396.0,0.12625864]
[1744131798489,0.012919,77400.0,77396.0,0.12625864]
[1744131798653,0.01292,77399.0,77396.0,0.12625864]
[1744131798854,0.258407,77397.0,77396.0,0.12625864]
[1744131799103,0.01292,77396.0,77395.0,0.00042356]
[1744131800020,0.01292,77396.0,77395.0,5.6e-07]
[1744131800244,0.47917864,77396.0,77395.0,5.6e-07]
[1744131800754,0.5578,77396.0,77395.0,5.6e-07]
[1744131800952,0.54488,77396.0,77395.0,5.6e-07]
[1744131801211,0.816211,77396.0,77395.0,5.6e-07]
[1744131801453,0.820211,77396.0,77395.0,5.6e-07]
[1744131801821,0.94246645,77396.0,77395.0,5.6e-07]
[1744131801970,1.07272509,77396.0,77395.0,5.6e-07]
[1744131802170,0.822211,77396.0,77395.0,5.6e-07]
[1744131802368,0.818211,77396.0,77395.0,5.6e-07]
[1744131802825,0.824211,77396.0,77395.0,5.6e-07]
[1744131803002,0.55288,77396.0,77395.0,5.6e-07]
[1744131803183,0.35892,77396.0,77395.0,5.6e-07]
[1744131803379,0.5638,77396.0,77395.0,5.6e-07]
[1744131803662,0.5658,77396.0,77395.0,5.6e-07]
[1744131804212,0.5598,77396.0,77395.0,5.6e-07]